Cogmind - Beta 9.4 @@@ ROGUE MODE // 2020.02.21 @ 21:35:32 Player: Honkmo Jones Result: Destroyed by G-34 Mercenary with Small Laser Performance ------------- Evolutions (1) 500 Regions Visited (2) 400 Robots Destroyed (52) 260 Value Destroyed (1327) 1327 Prototype IDs (5) 100 Alien Tech Used (0) 0 Bonus (0) 0 TOTAL SCORE: 2587 Bonus ------- None Cogmind --------- Core Integrity 0/400 Matter 300/300 Energy 250/250 System Corruption 5% Temperature Cool (6) Movement Walking (180) Ox2 Location -9/Materials Parts ------- > --- POWER (2) -------- Ion Engine > --- PROPULSION (2) --- Aluminum Leg Aluminum Leg > --- UTILITY (3) ------ Improved Heat Sink High-capacity Storage Unit Transmission Jammer > --- WEAPON (2) ------- Improved EM Shotgun Hammer > --- INVENTORY (12) --- Aluminum Leg Aluminum Leg Advanced Visual Processing Unit Improved Medium Laser Rocket Launcher Mini Grenade Launcher Peak State ------------ > --- POWER ------------ Improved Ion Engine Reinforced Ion Engine > --- PROPULSION ------- Aluminum Leg Aluminum Leg > --- UTILITY ---------- High-capacity Storage Unit Improved Weapon Shielding Light Armor Plating > --- WEAPON ----------- Improved EM Shotgun Improved Medium Laser > --- INVENTORY -------- Aluminum Leg Aluminum Leg Aluminum Leg Advanced Visual Processing Unit Improved Sensor Array Transmission Jammer Autogun Rocket Launcher Mini Grenade Launcher Hammer [Rating: 18] Favorites ----------- Power Light Ion Engine Engine Light Ion Engine Propulsion Aluminum Leg Leg Aluminum Leg Utility High-capacity Storage Unit Device Transmission Jammer Storage High-capacity Storage Unit Hackware Hacking Suite Protection Power Shielding Weapon Shotgun Energy Gun Improved EM Shotgun Energy Cannon Advanced Beam Cannon Ballistic Gun Shotgun Launcher Grenade Launcher Impact Weapon Hammer Build | -11 -10 -9 ------- Run | Scr Mat Mat Slots Evolved 2 | . . 2 Power 1 | . . 1 Propulsion . | . . . Utility 1 | . . 1 Weapon . | . . . Parts Attached 60 | 3 10 47 Power 10 | 1 . 9 Engine 10 | 1 . 9 Core . | . . . Reactor . | . . . Propulsion 17 | 2 2 13 Treads . | . . . Leg 17 | 2 2 13 Wheel . | . . . Hover . | . . . Flight . | . . . Utility 15 | . 2 13 Device 7 | . . 7 Storage 3 | . 1 2 Processor . | . . . Hackware 1 | . . 1 Protection 4 | . 1 3 Artifact . | . . . Weapon 18 | . 6 12 Energy Gun 3 | . 1 2 Energy Cannon 1 | . . 1 Ballistic Gun 11 | . 4 7 Ballistic Cannon . | . . . Launcher 1 | . 1 . Special Weapon . | . . . Impact Weapon 2 | . . 2 Slashing Weapon . | . . . Piercing Weapon . | . . . Special Melee Weapon . | . . . Unidentified Prototypes 2 | . . 2 Parts Lost 14 | . 2 12 Power 6 | . 1 5 Propulsion 2 | . . 2 Utility 5 | . . 5 Weapon 1 | . 1 . Highest Loss Streak 3 | . 1 3 Average Slot Usage (%) 93 | . 95 93 Engine 17 | . 12 18 Leg 23 | . 28 21 Device 6 | . . 7 Storage 11 | . 13 11 Hackware 6 | . . 7 Protection 6 | . 13 4 Energy Gun 1 | . 3 1 Energy Cannon 1 | . . 1 Ballistic Gun 17 | . 21 16 Impact Weapon 1 | . . 1 Naked Turns . | . . . Heaviest Build 60 | 3 13 60 Greatest Support 20 | 20 20 20 Greatest Overweight (x) 5 | . 1 5 Average Overweight (x) 1 | . . 1 Largest Inventory Capacity 12 | 4 6 12 Average Capacity 9 | 4 5 10 Most Carried 12 | 3 6 12 Average Carried 6 | 2 4 7 Final Capacity 12 | 4 6 12 Final Carried 6 | 3 5 6 Class Distribution -------------------- 71% | Scavenger-Mutant 28% | Mutant Dominant Class ---------------- Mutant | -10/Materials Scavenger-Mutant | -9/Materials Resources | -11 -10 -9 ----------- Run | Scr Mat Mat Matter Collected 1702 | 230 295 1177 Remotely . | . . . Salvage Created 1629 | . 337 1292 Parts 109 | . 27 82 Haulers Intercepted 2 | . . 2 Recyclers Shooed 1 | . . 1 Parts Field Recycled . | . . . Retrieved Matter . | . . . Parts Self-Destructed . | . . . Prevented . | . . . Kills | -11 -10 -9 ------- Run | Scr Mat Mat Combat Hostiles Destroyed 38 | . 8 30 Melee 1 | . . 1 Guns 29 | . 7 22 Cannons 5 | . . 5 AOE 2 | . 1 1 Classes Destroyed 9 | . 3 6 Worker 3 | . . 3 Builder 2 | . 1 1 Hauler 2 | . . 2 Operator 2 | . . 2 Watcher 5 | . 1 4 Swarmer 8 | . . 8 Grunt 25 | . 8 17 Brawler 1 | . . 1 Sentry 4 | . . 4 Best Kill Streak 5 | . 2 5 Combat Bots Only 4 | . 2 4 Max Kills in Single Turn 2 | . 1 2 Gunslinging 1 | . . 1 Exploded 1 | . 1 1 Melee 1 | . . 1 Uniques/NPCs Destroyed . | . . . Combat | -11 -10 -9 -------- Run | Scr Mat Mat Damage Taken 2986 | . 538 2448 Core 564 | . 162 402 Absorbed by Shields . | . . . Core Remaining (%) 67 | 100 35 . Volleys Fired 151 | . 33 118 Largest 2 | . 2 2 Hottest 101 | . 85 101 Shots Fired 292 | . 66 226 Gun 264 | . 64 200 Cannon 26 | . . 26 Launcher 2 | . 2 . Special . | . . . Kinetic 249 | . 60 189 Thermal 34 | . 4 30 Explosive 2 | . 2 . Electromagnetic 7 | . . 7 Robot Hit Streak 14 | . 10 14 Robot Miss Streak 6 | . 3 6 Penetration Max . | . . . Secondary Targets 4 | . . 4 Max Gunslinging Chain 1 | . . 1 Shots Hit Robots 233 | . 43 190 Core Hits 89 | . 18 71 Critical Hits 1 | . . 1 Critical Kills . | . . . Critical Parts Destroyed 1 | . . 1 Melee Attacks 33 | . . 33 Impact 33 | . . 33 Slashing . | . . . Piercing . | . . . Sneak Attacks 3 | . . 3 Combat Hostiles . | . . . Follow-up Attacks . | . . . Damage Inflicted 3447 | . 565 2882 Guns 2486 | . 486 2000 Cannons 330 | . . 330 Explosions 140 | . 79 61 Melee 488 | . . 488 Ramming 3 | . . 3 Kinetic 2262 | . 435 1827 Thermal 493 | . 51 442 Explosive 79 | . 79 . Electromagnetic 122 | . . 122 Impact 488 | . . 488 Slashing . | . . . Piercing . | . . . Highest Corruption 5 | . . 5 Average Corruption 4 | . . 4 Corruption Purged . | . . . Effects 16 | . . 16 Message Errors 4 | . . 4 Matter Fused 2 | . . 2 Heat Flow Errors 4 | . . 4 Energy Discharges 4 | . . 4 Data Loss (minor) 2 | . . 2 Overload Shots . | . . . Overflow Damage 51 | . . 51 Projectiles 2 | . . 2 Explosions . | . . . Melee 49 | . . 49 Knockbacks . | . . . Impact . | . . . Kinetic . | . . . Secondary . | . . . Self-Inflicted Damage 88 | . 74 14 Shots 3 | . 2 1 Rammed 1 | . . 1 Targets Rammed 1 | . . 1 Kicked . | . . . Crushed . | . . . Highest Temperature 584 | . 54 584 Average Temperature 77 | . 16 81 Received Heat Transfer 1128 | . 255 873 Effects 12 | . . 12 Shutdowns 3 | . . 3 Interference 4 | . . 4 Short Circuit 1 | . . 1 Damage (minor) 3 | . . 3 Damage (core) 1 | . . 1 Siege Activations . | . . . Robots Corrupted 1 | . . 1 Combat Hostiles 1 | . . 1 Parts Fried 4 | . . 4 Impact Corruptions 3 | . . 3 Robots Melted . | . . . Combat Hostiles . | . . . Parts Melted 1 | . . 1 Heat Transferred 864 | . 111 753 Parts Sabotaged . | . . . Parts Stolen . | . . . Parts Stripped . | . . . Power Chain Reactions 1 | . . 1 Missiles Intercepted . | . . . Alert | -11 -10 -9 ------- Run | Scr Mat Mat Peak Influence 343 | . 124 343 Average Influence 192 | . 53 225 Maximum Alert Level 1 | . . 1 Low Security (%) 46 | 100 100 34 Level 1 53 | . . 65 Level 2 . | . . . Level 3 . | . . . Level 4 . | . . . Level 5 . | . . . High Security . | . . . Max Security . | . . . Squads Dispatched 14 | . 4 10 Investigation 10 | . 2 8 Extermination . | . . . Reinforcement 4 | . 2 2 Assault . | . . . Garrison . | . . . Intercept . | . . . Construction Impeded . | . . . Haulers Reinforced . | . . . Stealth | -11 -10 -9 --------- Run | Scr Mat Mat Distress Signals 10 | . 3 7 Communications Jammed 2 | . . 2 Distress Signals 2 | . . 2 Times Spotted 85 | . 22 63 Peak Tracking Total 6 | . 6 5 Tactical Retreats 10 | . 1 9 Traps | -11 -10 -9 ------- Run | Scr Mat Mat Traps Triggered 1 | . 1 . Indirectly . | . . . Trap Hack Attempts . | . . . Triggered . | . . . Disarmed . | . . . Reprogrammed . | . . . Reused . | . . . Traps Extracted . | . . . Installed . | . . . Triggered . | . . . Machines | -11 -10 -9 ---------- Run | Scr Mat Mat Machines Disabled . | . . . Max in Single Turn . | . . . Machines Sabotaged . | . . . Garrisons Compromised . | . . . Overloaded Fab Kills . | . . . Fab Network Shutdowns . | . . . Hacking | -11 -10 -9 --------- Run | Scr Mat Mat Machines Accessed 15 | . 4 11 Terminals 12 | . 4 8 Fabricators . | . . . Repair Stations . | . . . Recycling Units 1 | . . 1 Scanalyzers 2 | . . 2 Garrison Access . | . . . Total Hacks 55 | . 16 39 Successful 37 | . 10 27 Failed 18 | . 6 12 Catastrophic 3 | . 1 2 Database Lockouts . | . . . Manual 20 | . 7 13 Terminals 42 | . 16 26 Fabricators . | . . . Repair Stations . | . . . Recycling Units 1 | . . 1 Scanalyzers 12 | . . 12 Garrison Access . | . . . Terminal Hacks 25 | . 10 15 Record 10 | . 4 6 Prototype ID Bank 1 | . . 1 Emergency Access Points 4 | . 2 2 Terminal Index 2 | . 1 1 Alert Level 3 | . 1 2 Unreport Threat 1 | . 1 . Locate Traps 1 | . . 1 Maintenance Status 1 | . . 1 Zone Layout 2 | . 1 1 Fabricator Hacks . | . . . Repair Station Hacks . | . . . Recycling Unit Hacks . | . . . Scanalyzer 9 | . . 9 Insert Component 5 | . . 5 Analyze 4 | . . 4 Garrison Access Hacks . | . . . Unauthorized Hacks 7 | . . 7 Terminals 1 | . . 1 Track 1 | . . 1 Fabricators . | . . . Repair Stations . | . . . Recycling Units 1 | . . 1 Reject 1 | . . 1 Scanalyzers 1 | . . 1 Extract 1 | . . 1 Garrison Access . | . . . Data Cores Recovered 1 | . . 1 Used . | . . . Hacking Detections 14 | . 4 10 Full Trace Events 11 | . 3 8 Feedback Events . | . . . Feedback Blocked . | . . . Robot Schematics Acquired . | . . . Robots Built . | . . . Matter . | . . . Time . | . . . Total Robot Build Rating . | . . . Part Schematics Acquired 7 | . . 7 Parts Built . | . . . Matter . | . . . Time . | . . . Total Part Build Rating . | . . . Parts Repaired . | . . . Time . | . . . Parts Recycled . | . . . Recycled Matter . | . . . Retrieved Matter . | . . . Retrieved Components . | . . . Parts Scanalyzed 4 | . . 4 Part Schematics Acquired 4 | . . 4 Parts Damaged 1 | . . 1 Bothacking | -11 -10 -9 ------------ Run | Scr Mat Mat Used RIF Installer . | . . . Robots Hacked . | . . . Non-combat . | . . . Combat . | . . . Robot Hacks Applied . | . . . Relay Couplers Released . | . . . Robots Rewired . | . . . Allies Hacked . | . . . Hacks Repelled . | . . . Allies | -11 -10 -9 -------- Run | Scr Mat Mat Total Allies . | . . . Largest Group . | . . . Highest-Rated Group . | . . . Highest-Rated Ally . | . . . Total Orders . | . . . Ally Attacks . | . . . Total Damage . | . . . Kills . | . . . Allies Corrupted . | . . . Allies Melted . | . . . Intel | -11 -10 -9 ------- Run | Scr Mat Mat Robot Analysis Total . | . . . Derelict Logs Recovered . | . . . Drone Launches . | . . . Drone Recoveries . | . . . Exploration | -11 -10 -9 ------------- Run | Scr Mat Mat Turns Passed 4011 | 52 699 3260 Spaces Moved 1821 | 32 389 1400 Core 6 | 6 . . Treads . | . . . Legs 1815 | 26 389 1400 Wheels . | . . . Hover . | . . . Flight . | . . . Fastest Speed 50 | 50 120 120 Average Speed 156 | 106 120 167 Slowest Speed 270 | 120 150 270 Overloaded Moves . | . . . Propulsion Burnouts . | . . . Robots Hopped . | . . . Cave-ins Triggered . | . . . Exploration Rate (%) 39 | 3 45 70 Regions Visited 2 Branch Regions . Pre-discovered Areas . | . . . Known Exits Taken . | . . . Unknown Exits Taken 2 | 1 1 . Scrap Searched . | . . . Spaces Dug . | . . . Terrain Destroyed 15 | . 9 6 Melee . | . . . Projectile . | . . . AOE 15 | . 9 6 Actions | -11 -10 -9 --------- Run | Scr Mat Mat Total 2659 | 49 554 2056 Wait 497 | 9 111 377 Move 1819 | 31 388 1400 Hop . | . . . Pick Up 62 | 6 9 47 Fast Attach 1 | . . 1 Attach 34 | 3 6 25 Detach 1 | . . 1 Swap 25 | . 4 21 Drop 35 | . 3 32 Fire 151 | . 33 118 Melee 33 | . . 33 Ram . | . . . Kick 1 | . . 1 Crush . | . . . Escape Stasis . | . . . Rewire . | . . . Trap . | . . . Miscellaneous . | . . . Route ------- -11/Scrapyard -10/Materials -9/Materials (discovered 3 exits: [*Mat x2] / [*Min]) History --------- Turn | Location | Event 5 | -11/Scrapyard | Discovered new exit (range 14) 53 | -11/Scrapyard | Entered Materials 302 | -10/Materials | Build established: Mutant 507 | -10/Materials | Discovered new exit (range 5) 671 | -10/Materials | Core integrity fell below 50% 752 | -10/Materials | Entered another Materials area 752 | -9/Materials | Evolved 2 slots: Power x1, Utility x1 1352 | -9/Materials | Discovered new exit (range 13) 1430 | -9/Materials | Build established: Scavenger-Mutant 2293 | -9/Materials | Discovered new exit (range 16) 2591 | -9/Materials | Discovered new exit (range 10) 3267 | -9/Materials | Core integrity fell below 50% 3761 | -9/Materials | Lost 3 parts (1p1n1u) 3763 | -9/Materials | Core integrity fell below 20% 4012 | -9/Materials | Destroyed by G-34 Mercenary with Small Laser Last Messages --------------- Lgt. Armor Plating fried. Acquired 35 matter. Acquired 10 matter. Acquired Ion Engine. Acquired Aluminum Leg. Acquired 10 matter. LT#MOM CFF3IZ3B2TFBSA System corrupted: Matter fused (-6). Connecting with Terminal... Rnf. Ion Engine destroyed. NHBTRIFTJTBGM1H#XXCUT1 System corrupted: Energy discharge (-87). Chain reaction triggered in Lgt. Nuclear Core. G-47 Trooper destroyed. Imp. Weapon Shielding destroyed. Acquired Imp. Heat Sink. Acquired 20 matter. U-05 Engineer builds a Wall. 4UX&HVH2=W>ULXDYEY#RMWC8OQY U-05 Engineer lays Concrete. Map ----- +----------------------------------------------------+ | | | | | | | | | | | | | | | | | | | | | | | | | | | | | ??????????????????????????????????????????? | | ??????????????????????????????????????????? | | ??????????????????????????????????????????? | | ??????????????????????????????????????????? | | ??????????????????????????????????????????? | | ###???????????????????????????????????????? | | #########+##????????????????????????????? | | ## ##########???????????????????? | | ## #???????????????????? | | ## #???????????????????? | | ## ######### ########## #????? | | ## #???????# g @ +????? | | ## #???????#######+######????????? | | +### #?????????????????????????????? | | ###???????????????????????????? | | " #???????????????????????????? | | % %"##???????????????????????????? | | +### "#????????????????????????????? | | % ### ##"# ##????????????????????????????? | | #?# #### #?????????????????????????????? | | #?# #??# #?????????????????????????????? | | #?# #?##+#####?????????????????????????? | | ### ### #?????????????????????????? | | # # #?????????????????????????? | | # # #?????????????????????????? | | #### # #?????????????????????????? | | ???# # #?????????????????????????? | | ???# # #?????????????????????????? | | ???### ### #?????????????????????????? | | ?????# #?# #?????????????????????????? | | ?????# #?# #?????????????????????????? | | ?????# #?# #?????????????????????????? | | ?????# #?# #?????????????????????????? | | ?????# #?# #?????????????????????????? | | ?????# #?# #?????????????????????????? | | ?????# #?####+###?????????????????????????? | +----------------------------------------------------+ Best States ------------- Heat Dissipation 42 Energy Generation 19 Energy Capacity 430 Matter Stores 300 Matter Capacity 300 Sight Range 16 Robot Scan Range 13 Terrain Scan Density 10 Jamming Range 8 Armor Coverage 225 Power Shielding 33 Weapon Shielding 66 Evasion (%) 40 Offensive Hacking 10 Item Schematics ----------------- Shotgun | -9/Materials | Scanalyzed Grenade Launcher | -9/Materials | Scanalyzed Aluminum Leg | -9/Materials | Scanalyzed Lrg. Matter Pod | -9/Materials | Extracted Imp. Hover Unit | -9/Materials | Extracted Sml. Laser | -9/Materials | Extracted Autogun | -9/Materials | Scanalyzed Robot Schematics ------------------ None Fabricated ------------ Nothing Alien Tech Used ----------------- None Achievements -------------- Brute Force Let's See Who's Tougher Librarian Party Time Power Corrupts Safety First True Hacker Challenges ------------ None Game ------ Seed FlightGlidesysHammer Manual? 0 Play Time 00:38:30 Cumulative 3.8 hours Start 2020.02.21 @ 04:14:52 End 2020.02.21 @ 21:35:32 Sessions 2 Manual Loads 0 Difficulty Rogue Special Mode None Game No. 11 Rogue 11 Adventurer 0 Explorer 0 Win Type - Total 0 Types 0/0/0/0/0/0/0 Lore% 6 Gallery% 10 Achievement% 11 Wizard Run 0 Options --------- ASCII 0 Keyboard 0 Movement Mouse Keybinds 0 Fullscreen 1 Font 12/Smallcaps Map View 83x54 Tactical HUD 0 Map Filters NONE Filters NONE Steam 1 RUN: 6b066dfa-a12f-47e4-8dc4-7ac95cb3f57b